Cogmind - Beta 16.1 @@@ ROGUE MODE // 2026.04.23 @ 06:35:37 Player: Shimejimeji Result: Self-destructed Performance ------------- Evolutions (5) 2500 Regions Visited (19) 3800 Robots Destroyed (204) 1020 Value Destroyed (6474) 6474 Prototype IDs (60) 1200 Alien Tech Used (1) 200 Bonus (2562) 2562 TOTAL SCORE: 17756 Bonus ------- High Alert Combat Kills 100 Follower Combat Kills 237 Aligned with FarCom 300 Met Data Miner 300 Met Warlord at Base 500 MAIN.C Attacked Warlord 500 Warlord Defense Kills 1222 Friendly Fire -597 Cogmind --------- Core Integrity 690/1000 Matter 270/300 Energy 700/700 System Corruption 0% Temperature Cool (47) Movement Walking (107) Location -5/Warlord Parts ------- > --- POWER (2) -------- Vortex Chain Reactor > --- PROPULSION (6) --- Thunder Leg Thunder Leg Thunder Leg Myomer Leg Myomer Leg Experimental Myomer Leg > --- UTILITY (7) ------ Large Storage Unit Improved Signal Interpreter Experimental Target Analyzer Makeshift Hacking Suite Makeshift Hacking Suite System Mapper > --- WEAPON (3) ------- Heavy Rocket Launcher Long-range Missile Launcher Longsword +1 > --- INVENTORY (15) --- Neutrino Core Neutrino Core Heavy Treads Heavy EM Shotgun Heavy EM Shotgun Improved Heavy Laser Long-range Proton Cannon Vortex Driver (30) Vortex Driver (30) Enhanced Autogun Enhanced Autogun Smartbomb Launcher Thermoblaster Peak State ------------ > --- POWER ------------ Vortex Chain Reactor > --- PROPULSION ------- Flexi-carbon Leg Thunder Leg Thunder Leg Thunder Leg Thunder Leg Experimental Myomer Leg > --- UTILITY ---------- Large Storage Unit Experimental Sensor Array Improved Signal Interpreter Experimental Target Analyzer Makeshift Hacking Suite Makeshift Hacking Suite System Mapper > --- WEAPON ----------- Vortex Driver Vortex Driver Longsword +1 > --- INVENTORY -------- Neutrino Core Neutrino Core Heavy Treads Heavy EM Shotgun Heavy EM Shotgun Improved Heavy Laser Long-range Proton Cannon Enhanced Autogun Enhanced Autogun Heavy Rocket Launcher Long-range Missile Launcher Smartbomb Launcher Thermoblaster [Rating: 131] Favorites ----------- Power Improved Deuterium Engine Engine Improved Deuterium Engine Power Core Neutrino Core Reactor Light Antimatter Reactor Propulsion Thunder Leg Treads Armored Treads Leg Thunder Leg Hover Unit Aerolev Unit Utility Hacking Suite Device Experimental Sensor Array Storage Large Storage Unit Processor Improved Signal Interpreter Hackware Hacking Suite Protection Hardened Light Armor Plating Weapon Heavy EM Shotgun Energy Gun Heavy EM Shotgun Energy Cannon Long-range Proton Cannon Ballistic Gun Enhanced Autogun Launcher Long-range Missile Launcher Special Weapon Mining Laser Impact Weapon Power Maul Slashing Weapon Longsword +1 Special Melee Weapon Improved Datajack Build | -11 -10 -10 -9 -9 -9 -8 -8 -8 -8 -8 -6 -6 -6 -6 -5 -5 -5 -5 -5 ------- Run | Yrd Mat Min Mat Min Exi Min Mat Sto Rec Scr Fac Low Low Dat Pro Fac Upp Upp War Slots Evolved 10 | . . . 2 . . . 2 . . . 4 . . . . 2 . . . Power . | . . . . . . . . . . . . . . . . . . . . Propulsion 4 | . . . . . . . 1 . . . 2 . . . . 1 . . . Utility 5 | . . . 1 . . . 1 . . . 2 . . . . 1 . . . Weapon 1 | . . . 1 . . . . . . . . . . . . . . . . Parts Attached 146 | 7 6 . 19 1 4 1 17 10 1 1 14 4 . . 6 32 4 2 17 Power 17 | 1 2 . 3 . . . 1 1 . . 1 1 . . 1 5 . . 1 Engine 10 | 1 1 . 3 . . . 1 1 . . 1 1 . . 1 . . . . Core 5 | . 1 . . . . . . . . . . . . . . 4 . . . Reactor 2 | . . . . . . . . . . . . . . . . 1 . . 1 Propulsion 36 | 2 . . 4 . . . 5 3 . . 3 . . . 4 9 2 . 4 Treads 17 | 2 . . 4 . . . 4 3 . . 3 . . . . 1 . . . Leg 18 | . . . . . . . . . . . . . . . 4 8 2 . 4 Wheel . | . . . . . . . . . . . . . . . . . . . . Hover 1 | . . . . . . . 1 . . . . . . . . . . . . Flight . | . . . . . . . . . . . . . . . . . . . . Utility 38 | 2 1 . 3 . 1 . 3 2 1 1 4 1 . . . 11 . 1 7 Device 16 | 1 1 . . . 1 . . 1 1 . 1 . . . . 7 . . 3 Storage 2 | 1 . . 1 . . . . . . . . . . . . . . . . Processor 6 | . . . 1 . . . 2 . . . 1 . . . . . . 1 1 Hackware 8 | . . . . . . . . 1 . 1 2 . . . . 1 . . 3 Protection 6 | . . . 1 . . . 1 . . . . 1 . . . 3 . . . Artifact . | . . . . . . . . . . . . . . . . . . . . Weapon 55 | 2 3 . 9 1 3 1 8 4 . . 6 2 . . 1 7 2 1 5 Energy Gun 23 | . 1 . 5 . 3 . 6 1 . . 1 2 . . 1 3 . . . Energy Cannon 7 | . . . 1 . . . 1 . . . 2 . . . . 1 . . 2 Ballistic Gun 8 | 2 . . 2 . . . . 2 . . 2 . . . . . . . . Ballistic Cannon . | . . . . . . . . . . . . . . . . . . . . Launcher 9 | . 1 . . . . 1 . 1 . . 1 . . . . 2 1 1 1 Special Weapon 3 | . 1 . . . . . . . . . . . . . . . 1 . 1 Impact Weapon 2 | . . . 1 1 . . . . . . . . . . . . . . . Slashing Weapon 2 | . . . . . . . 1 . . . . . . . . 1 . . . Piercing Weapon . | . . . . . . . . . . . . . . . . . . . . Special Melee Weapon 1 | . . . . . . . . . . . . . . . . . . . 1 Unidentified Prototypes 25 | . . . 2 . 1 . 4 2 . . 3 1 . . . 3 1 . 8 Corrupted Parts 11 | . . . 1 1 . 1 . . . 1 . . . . 5 1 1 . . System Corruption 63 | . . . 5 1 . 8 . . . 3 . . . . 36 1 9 . . Parts Lost 21 | . 2 . 2 . . . 1 . . . 1 . 1 . . 10 1 2 1 Power 4 | . 1 . 1 . . . . . . . . . . . . 2 . . . Propulsion 4 | . . . . . . . . . . . . . . . . 2 1 1 . Utility 6 | . . . . . . . . . . . . . . . . 4 . 1 1 Weapon 7 | . 1 . 1 . . . 1 . . . 1 . 1 . . 2 . . . Highest Loss Streak 2 | . 1 . 1 . . . 1 . . . 1 . 1 . . 2 1 2 1 To Critical Strikes 1 | . . . . . . . . . . . . . . . . . 1 . . Average Backups 13 | 1 3 4 8 13 14 11 13 14 14 14 13 14 14 15 14 13 12 12 12 Power 1 | . . 1 . . . . . 2 2 2 2 1 1 1 . 1 2 2 2 Propulsion 1 | . . 1 2 2 2 2 . . . . . 3 4 4 4 3 1 1 1 Utility 2 | . . . 2 2 2 2 3 5 5 5 3 3 3 3 3 1 . . . Weapon 7 | . 2 2 4 9 10 7 8 7 7 7 7 7 6 7 7 6 8 8 9 Tool/Special . | . . . . . . . . . . . . . . . . . . . . Unused Backups 13 | . . . 1 . . . 2 . . . 3 . . . . 4 . . 3 Power 5 | . . . . . . . 1 . . . . . . . . 2 . . 2 Propulsion 4 | . . . 1 . . . . . . . 2 . . . . . . . 1 Utility 2 | . . . . . . . . . . . 1 . . . . 1 . . . Weapon 1 | . . . . . . . 1 . . . . . . . . . . . . Tool/Special 1 | . . . . . . . . . . . . . . . . 1 . . . Average Slot Usage (%) 95 | . 100 100 98 100 66 100 94 100 99 99 95 94 92 93 97 98 87 87 86 Engine 7 | . 9 14 11 11 11 11 9 9 9 9 6 6 6 6 9 5 5 5 3 Core 1 | . 4 . . . . . . . . . . . . . . 4 5 5 4 Treads 20 | . 28 28 22 22 22 22 25 27 27 27 29 31 31 31 30 4 . . . Leg 8 | . . . . . . . . . . . . . . . . 28 31 31 28 Device 6 | . 14 14 10 11 11 11 . . 2 9 6 6 6 6 6 11 4 5 5 Storage 7 | . 14 14 11 11 11 11 9 9 9 9 6 6 6 6 6 5 5 5 5 Processor 8 | . . . 7 11 11 11 16 18 15 9 6 6 6 6 6 5 5 9 6 Hackware 6 | . . . . . . . . . . . 12 12 12 12 12 11 11 11 12 Protection 5 | . . . 2 . . . 7 8 9 8 5 6 6 6 6 3 11 6 8 Energy Gun 15 | . 5 . 27 32 . 33 26 26 27 27 12 18 12 12 11 5 1 . . Ballistic Gun 3 | . 21 24 3 . . . . . . . 3 . 5 6 6 6 . . . Slashing Weapon 1 | . . . . . . . . . . . 1 . . . . 3 4 5 5 Peak Build Rating 131 | 7 9 8 20 21 20 21 30 39 38 40 56 62 58 58 70 102 92 94 131 Average Rating 50 | 6 7 7 17 19 12 20 24 31 36 37 50 58 57 58 60 88 82 83 91 On Entrance 38 | . 7 7 8 20 12 20 21 29 36 38 38 51 58 58 58 70 73 85 78 Avg Prop Armor Cover (%) 10 | . . . . . . . . . . . . . . . 16 10 . . . Naked Turns . | . . . . . . . . . . . . . . . . . . . . Heaviest Build 91 | 14 16 16 41 38 38 42 47 49 48 48 54 51 50 49 60 68 66 64 91 Greatest Support 144 | 40 40 40 40 40 40 40 60 64 64 64 104 104 104 104 104 138 135 135 144 Greatest Overweight (x) 4 | 4 . . 1 . . 1 2 . . . . . . . 2 . . . . Average Overweight (x) . | . . . . . . . . . . . . . . . . . . . . Largest Inventory Capacity 15 | 8 8 8 15 15 15 15 15 15 15 15 15 15 15 15 15 15 15 15 15 Average Capacity 14 | 7 8 8 10 15 15 15 15 15 15 15 15 15 15 15 15 15 15 15 15 Most Carried 15 | 3 4 5 15 15 15 11 15 15 15 15 15 15 15 15 15 15 15 15 15 Average Carried 13 | 1 3 4 8 13 14 11 13 14 14 14 13 14 14 15 14 14 14 14 14 Final Capacity 15 | 8 8 8 15 15 15 15 15 15 15 15 15 15 15 15 15 15 15 15 15 Final Carried 15 | 3 4 5 14 15 11 11 15 15 15 15 12 15 15 15 14 15 15 14 15 Class Distribution -------------------- 19% | Hacker-Mutant 18% | Hacker-Skirmisher 16% | Skirmisher 14% | Commander-Skirmisher 8% | Mutant 6% | Gunner 3% | Commander-Mutant 3% | Scavenger-Mutant 3% | Commander-Tank Dominant Class ---------------- Mutant | -10/Materials Mutant | -10/Mines Gunner | -9/Materials Gunner | -9/Mines Mutant | -9/Exiles Skirmisher | -8/Mines Skirmisher | -8/Materials Skirmisher | -8/Storage Commander-Skirmisher | -8/Recycling Commander-Tank | -8/Scraptown Commander-Skirmisher | -6/Factory Hacker-Skirmisher | -6/Lower Caves Hacker-Skirmisher | -6/Lower Caves Hacker-Skirmisher | -6/Data Miner Hacker-Skirmisher | -5/Proximity Caves Hacker-Mutant | -5/Factory Hacker-Mutant | -5/Upper Caves Hacker-Mutant | -5/Upper Caves Hacker-Mutant | -5/Warlord Resources | -11 -10 -10 -9 -9 -9 -8 -8 -8 -8 -8 -6 -6 -6 -6 -5 -5 -5 -5 -5 ----------- Run | Yrd Mat Min Mat Min Exi Min Mat Sto Rec Scr Fac Low Low Dat Pro Fac Upp Upp War Matter Collected 4984 | 315 200 . 466 84 . . 532 280 10 20 435 236 81 . 66 1485 196 196 382 Remotely . | . . . . . . . . . . . . . . . . . . . . Salvage Created 9148 | 147 472 . 1006 70 . . 1545 1156 151 . 804 140 217 . 119 2486 138 233 464 Parts 498 | 16 23 . 67 7 . . 79 64 8 . 44 9 6 . 8 140 6 6 15 Haulers Intercepted 14 | . . . 4 . . . 5 4 . . 1 . . . . . . . . Recyclers Shooed 6 | 1 . . . 1 . . 2 . . . . . . . . 2 . . . Parts Field Recycled . | . . . . . . . . . . . . . . . . . . . . Retrieved Matter . | . . . . . . . . . . . . . . . . . . . . Parts Self-Destructed 9 | . . . . . . . . . . . . . 2 . 4 . . 3 . Prevented 19 | . . . . . . . . . . . . 9 2 . 2 . 6 . . Parts Restored . | . . . . . . . . . . . . . . . . . . . . Kills | -11 -10 -10 -9 -9 -9 -8 -8 -8 -8 -8 -6 -6 -6 -6 -5 -5 -5 -5 -5 ------- Run | Yrd Mat Min Mat Min Exi Min Mat Sto Rec Scr Fac Low Low Dat Pro Fac Upp Upp War Combat Hostiles Destroyed 128 | . 10 . 19 4 . . 20 13 2 . 8 2 5 . 6 25 2 2 10 Melee 6 | . . . . . . . . . . . . . . . . 5 1 . . Guns 75 | . 6 . 14 4 . . 13 9 2 . 6 . 1 . 3 17 . . . Cannons 1 | . . . . . . . . . . . 1 . . . . . . . . AOE 37 | . 4 . 5 . . . 6 3 . . . . 2 . 3 2 . 2 10 Classes Destroyed 17 | 2 3 . 6 . . . 2 . 1 . 1 . . . 1 . . . 1 Worker 9 | . . . 1 . . . . 2 . . . . . . . 6 . . . Builder 5 | . . . . . . . 1 1 1 . . . . . . 2 . . . Tunneler 8 | 5 . . . 1 . . . . . . . . . . . 2 . . . Hauler 14 | . . . 4 . . . 5 4 . . 1 . . . . . . . . Recycler 14 | 1 . . . . . . 2 . 1 . 2 . . . . 8 . . . Operator 4 | . 1 . 1 . . . 1 1 . . . . . . . . . . . Drone 2 | . . . . . . . . . . . . . . . 2 . . . . Watcher 16 | . 3 . 3 . . . 5 2 . . 1 . . . . 2 . . . Swarmer 29 | . . . 7 4 . . 4 3 . . . . 2 . 4 5 . . . Grunt 40 | . 10 . 3 . . . 7 9 . . 3 . 2 . . . . . 6 Brawler 3 | . . . 1 . . . 1 . . . 1 . . . . . . . . Duelist 2 | . . . 1 . . . . 1 . . . . . . . . . . . Protector 1 | . . . . . . . . . 1 . . . . . . . . . . Sentry 22 | . . . 7 . . . 7 4 1 . . . 1 . . 2 . . . Specialist 2 | . . . . . . . . . . . . . . . . . . . 2 Hunter 9 | . . . . . . . 1 . . . . 2 . . . 1 2 2 1 Programmer 22 | . . . . . . . . . . . 4 . . . . 17 . . 1 Packrat 3 | . . . . . . . . . . . . . . . . . . 3 . Thug 2 | . . . . . . . . . . . . . . . . . . . 2 Best Kill Streak 9 | 2 4 . 7 4 . . 5 9 2 . 5 2 4 . 4 5 1 2 4 Combat Bots Only 7 | . 4 . 7 4 . . 4 7 1 . 4 2 4 . 4 5 1 2 4 Max Kills in Single Turn 4 | 1 2 . 4 1 . . 2 3 1 . 1 1 1 . 2 3 1 1 4 Gunslinging 1 | . . . 1 . . . 1 . . . . . . . . 1 . . . Exploded 4 | . 2 . 3 . . . 2 2 . . . . 1 . 2 2 . 1 4 Melee 1 | . . . . . . . . . . . . . . . . 1 1 . . Uniques/NPCs Destroyed . | . . . . . . . . . . . . . . . . . . . . Combat | -11 -10 -10 -9 -9 -9 -8 -8 -8 -8 -8 -6 -6 -6 -6 -5 -5 -5 -5 -5 -------- Run | Yrd Mat Min Mat Min Exi Min Mat Sto Rec Scr Fac Low Low Dat Pro Fac Upp Upp War Hostile Shots Fired 619 | . 23 . 55 14 . . 59 45 2 . 40 18 49 . 21 228 24 12 29 Missed 239 | . 5 . 22 2 . . 20 17 2 . 13 7 21 . 6 104 8 3 9 Hits 380 | . 18 . 33 12 . . 39 28 . . 27 11 28 . 15 124 16 9 20 Melee 5 | . . . 4 . . . 1 . . . . . . . . . . . . Projectile 375 | . 18 . 29 12 . . 38 28 . . 27 11 28 . 15 124 16 9 20 AOE 4 | . . . . . . . . . . . . . . . . 4 . . . Critical Strikes 16 | . 1 . 2 . . . 2 . . . 2 . . . . 5 2 . 2 Damage Taken 6959 | . 255 . 614 116 . . 545 434 . . 457 204 360 . 236 2997 298 162 281 Core 726 | . 45 . 91 33 . . 39 87 . . 29 . 74 . 18 269 18 23 . Absorbed by Shields . | . . . . . . . . . . . . . . . . . . . . Redirected to Shielding 36 | . . . . . . . . . . . . . . . . 24 12 . . Regen/Repaired (Parts) 571 | . . . 17 . . . . . . . . . . . . 391 . . 163 Core Remaining (%) 82 | 100 . 82 . . . 69 . . . 77 . . . . 85 . . . . Volleys Fired 362 | 20 39 . 51 5 . . 49 32 3 . 37 4 10 . 9 86 4 3 10 Largest 3 | 2 2 . 3 3 . . 3 3 3 . 3 3 3 . 3 3 3 2 1 Hottest 190 | 40 100 . 135 135 . . 150 150 150 . 190 155 150 . 125 181 181 82 43 Shots Fired 869 | 40 74 . 119 14 . . 128 88 9 . 95 12 30 . 27 207 10 6 10 Gun 805 | 40 70 . 111 14 . . 119 86 9 . 86 12 30 . 27 195 6 . . Cannon 37 | . . . 6 . . . 9 . . . 9 . . . . 9 4 . . Launcher 26 | . 3 . 2 . . . . 2 . . . . . . . 3 . 6 10 Special 1 | . 1 . . . . . . . . . . . . . . . . . . Kinetic 325 | 40 48 . 48 . . . . 2 . . 39 . 9 . 9 130 . . . Thermal 64 | . 1 . 6 . . . 9 . . . 10 . . . . 38 . . . Explosive 26 | . 3 . 2 . . . . 2 . . . . . . . 3 . 6 10 Electromagnetic 454 | . 22 . 63 14 . . 119 84 9 . 46 12 21 . 18 36 10 . . Robot Hit Streak 25 | 8 19 . 23 3 . . 13 17 25 . 14 7 5 . 3 10 13 . 7 Robot Miss Streak 9 | 3 2 . 8 2 . . 4 9 2 . 3 3 3 . 5 5 4 . 1 Penetration Max . | . . . . . . . . . . . . . . . . . . . . Secondary Targets 18 | . . . 2 . . . 1 5 . . 2 . 2 . 2 4 . . . Max Gunslinging Chain 1 | . . . 1 . . . 1 1 . . 1 . 1 . 1 1 . . . Shots Hit Robots 635 | 22 52 . 81 7 . . 88 63 5 . 69 11 24 . 15 176 14 3 5 Core Hits 365 | 10 27 . 47 4 . . 61 46 6 . 34 5 6 . 10 76 5 3 25 Critical Kills . | . . . . . . . . . . . . . . . . . . . . Critical Parts Destroyed . | . . . . . . . . . . . . . . . . . . . . Critical Strikes 5 | . . . . . . . . . . . . . . . . 4 1 . . Sever 5 | . . . . . . . . . . . . . . . . 4 1 . . Melee Attacks 147 | . . . 1 . . . 8 8 . . 24 2 . . . 92 7 5 . Impact 1 | . . . 1 . . . . . . . . . . . . . . . . Slashing 146 | . . . . . . . 8 8 . . 24 2 . . . 92 7 5 . Piercing . | . . . . . . . . . . . . . . . . . . . . Sneak Attacks 21 | . . . . . . . . . . . 2 . . . . 16 . 3 . Combat Hostiles . | . . . . . . . . . . . . . . . . . . . . Follow-up Attacks . | . . . . . . . . . . . . . . . . . . . . Damage Inflicted 18987 | 177 789 . 1584 87 . . 2288 1852 141 . 1602 256 638 . 424 5818 518 569 2244 Guns 9563 | 177 642 . 1077 74 . . 1567 1356 94 . 1071 256 417 . 247 2475 110 . . Cannons 254 | . . . . . . . . . . . 40 . . . . 105 109 . . Explosions 5450 | . 138 . 505 . . . 679 464 . . 300 . 221 . 177 459 . 263 2244 Melee 3556 | . . . . . . . . . . . 172 . . . . 2779 299 306 . Ramming 164 | . 9 . 2 13 . . 42 32 47 . 19 . . . . . . . . Kinetic 3247 | 177 411 . 385 . . . . 30 . . 469 . 98 . 64 1613 . . . Thermal 3025 | . . . 443 . . . 552 366 . . 340 . 221 . 177 926 . . . Explosive 3029 | . 138 . 62 . . . 127 98 . . . . . . . 97 . 263 2244 Electromagnetic 5958 | . 231 . 692 74 . . 1567 1326 94 . 602 256 319 . 183 395 219 . . Impact 8 | . . . . . . . . . . . . . . . . 8 . . . Slashing 3556 | . . . . . . . . . . . 172 . . . . 2779 299 306 . Piercing . | . . . . . . . . . . . . . . . . . . . . Highest Corruption 36 | . . . 8 9 9 17 . . . 3 1 . . . 36 15 24 24 24 Average Corruption 8 | . . . 6 8 9 9 . . . 3 1 . . . 22 5 22 17 24 Corruption Purged 6 | . . . . . . . . . . . 1 . . . . 5 . . . Corruption Blocked . | . . . . . . . . . . . . . . . . . . . . Effects 203 | . . . 21 16 13 2 . . . . . . . . 1 102 24 22 2 Message Errors 48 | . . . 6 3 3 1 . . . . . . . . 1 21 4 8 1 Matter Fused 50 | . . . 8 3 1 . . . . . . . . . . 25 10 3 . Heat Flow Errors 32 | . . . 2 4 3 . . . . . . . . . . 19 1 2 1 Energy Discharges 21 | . . . 1 3 2 . . . . . . . . . . 10 3 2 . Parts Fused 6 | . . . . 1 . . . . . . . . . . . 2 1 2 . Data Loss (minor) 26 | . . . 2 1 3 . . . . . . . . . . 17 1 2 . Data Loss (major) 8 | . . . 1 . . 1 . . . . . . . . . 2 1 3 . Alerts 3 | . . . . . 1 . . . . . . . . . . 2 . . . Misdirections 1 | . . . . . . . . . . . . . . . . . 1 . . Weapon Failures 8 | . . . 1 1 . . . . . . . . . . . 4 2 . . Overload Shots . | . . . . . . . . . . . . . . . . . . . . Overflow Damage 1016 | . . . 59 . . . . 31 . . 14 . 29 . . 598 30 244 11 Projectiles . | . . . . . . . . . . . . . . . . . . . . Explosions 315 | . . . 59 . . . . 31 . . 14 . 29 . . 171 . . 11 Melee 701 | . . . . . . . . . . . . . . . . 427 30 244 . Knockbacks 2 | . . . . . . . 1 . 1 . . . . . . . . . . Impact 2 | . . . . . . . 1 . 1 . . . . . . . . . . Kinetic . | . . . . . . . . . . . . . . . . . . . . Secondary . | . . . . . . . . . . . . . . . . . . . . Self-Inflicted Damage 374 | . . . 132 . . . . 48 . . 39 . 56 . . 66 . 11 22 Shots 13 | . . . 5 . . . . 2 . . 1 . 1 . . 2 . 1 1 Rammed 28 | . 6 . 1 3 . . 4 5 8 . 1 . . . . . . . . Targets Rammed 34 | . 6 . 2 4 . . 5 5 10 . 1 . . . . 1 . . . Kicked 1 | . . . . . . . . . . . . . . . . 1 . . . Crushed 5 | . . . 1 1 . . 1 . 2 . . . . . . . . . . Highest Temperature 456 | . 74 . 323 258 249 . 325 456 102 . 174 108 338 . 379 253 358 195 281 Average Temperature 94 | . 36 . 86 103 102 . 87 128 51 . 63 63 151 . 158 52 156 56 137 Received Heat Transfer 996 | . 162 . 126 . . . 171 144 . . 54 . 72 . . 213 . . 54 Effects 14 | . . . 1 . 1 . 6 2 . . . . . . 1 . 3 . . Shutdowns 4 | . . . . . . . . 2 . . . . . . 1 . 1 . . Energy Bleed 4 | . . . 1 . 1 . 2 . . . . . . . . . . . . Interference 6 | . . . . . . . 4 . . . . . . . . . 2 . . Siege Activations . | . . . . . . . . . . . . . . . . . . . . Martial Activations . | . . . . . . . . . . . . . . . . . . . . Shielding Activations . | . . . . . . . . . . . . . . . . . . . . Robots Disrupted 3 | . . . . . . . 2 . . . . . . . 1 . . . . Combat Hostiles 3 | . . . . . . . 2 . . . . . . . 1 . . . . Robots Corrupted 10 | . . . 1 . . . 1 1 . . 1 2 2 . . 1 1 . . Combat Hostiles 9 | . . . . . . . 1 1 . . 1 2 2 . . 1 1 . . Parts Fried 36 | . . . 2 . . . 10 9 2 . 1 4 2 . 2 2 2 . . Impact Corruptions . | . . . . . . . . . . . . . . . . . . . . Robots Melted . | . . . . . . . . . . . . . . . . . . . . Combat Hostiles . | . . . . . . . . . . . . . . . . . . . . Parts Melted 2 | . . . 1 . . . . . . . . . . . . 1 . . . Heat Transferred 3081 | . . . 600 . . . 500 350 . . 300 . 150 . 100 1081 . . . Parts Sabotaged . | . . . . . . . . . . . . . . . . . . . . Parts Stolen . | . . . . . . . . . . . . . . . . . . . . Parts Stripped . | . . . . . . . . . . . . . . . . . . . . Power Chain Reactions 27 | . . . 5 . . . 8 6 . . 2 . 3 . 2 1 . . . Alert | -11 -10 -10 -9 -9 -9 -8 -8 -8 -8 -8 -6 -6 -6 -6 -5 -5 -5 -5 -5 ------- Run | Yrd Mat Min Mat Min Exi Min Mat Sto Rec Scr Fac Low Low Dat Pro Fac Upp Upp War Maximum Alert Level 2 | . . . 1 . . . 1 1 . . . . . . . 2 . . . Low Security (%) 74 | 100 100 100 78 100 . 100 66 70 100 . 100 . . . . 50 . . . Level 1 21 | . . . 21 . . . 33 29 . . . . . . . 35 . . . Level 2 4 | . . . . . . . . . . . . . . . . 14 . . . Level 3 . | . . . . . . . . . . . . . . . . . . . . Level 4 . | . . . . . . . . . . . . . . . . . . . . Level 5 . | . . . . . . . . . . . . . . . . . . . . High Security . | . . . . . . . . . . . . . . . . . . . . Max Security . | . . . . . . . . . . . . . . . . . . . . Peak Influence 617 | 10 110 30 267 148 . . 322 284 177 . 108 . . . . 617 . . . Initial 318 | . . 30 . 88 . . . 132 103 . . . . . . 318 . . . Average 122 | 1 28 5 74 66 . . 128 159 42 . 19 . . . . 232 . . . Influence Increases 5213 | 30 337 . 608 95 . . 807 732 187 . 334 50 115 . 100 1518 50 50 200 Destroy 0b10 Robot/C 2680 | . 200 . 380 80 . . 400 340 120 . 160 40 100 . 80 500 40 40 200 Destroy 0b10 Robot/NC 370 | 30 20 . 45 5 . . 70 50 20 . 20 . . . 10 100 . . . Destroy Leader 660 | . 66 . 124 10 . . 140 102 . . 54 10 . . 10 124 10 10 . Allied During Kill 138 | . . . . . . . . 100 38 . . . . . . . . . . Successful Hack 192 | . 4 . 16 . . . 56 17 9 . 33 . . . . 57 . . . Disable Machine 285 | . . . 15 . . . 60 60 . . 30 . . . . 120 . . . Destroy Structure 378 | . 17 . 28 . . . 66 48 . . 37 . . . . 182 . . . Advance Influence 300 | . . . . . . . . . . . . . . . . 300 . . . Partial Spotted 15 | . 15 . . . . . . . . . . . . . . . . . . Lose Combat Pursuer 195 | . 15 . . . . . 15 15 . . . . 15 . . 135 . . . Influence Decreases 5053 | 30 260 77 380 323 . . 493 780 453 . 315 69 115 . 70 951 446 251 40 Entered New Map 813 | . . 47 . 140 . . . 182 163 . . 8 . . . 12 222 39 . Time Decay 3862 | 30 240 30 360 183 . . 473 598 270 . 305 61 105 . 70 691 214 202 30 Lost Part 190 | . 20 . 20 . . . 10 . . . . . 10 . . 100 10 10 10 Lost Ally 40 | . . . . . . . 10 . 20 . 10 . . . . . . . . Purge Threat 148 | . . . . . . . . . . . . . . . . 148 . . . Squads Dispatched 31 | . 3 . 1 . . . 2 2 . . 5 . . . . 18 . . . Investigation 6 | . 2 . 1 . . . 1 . . . 1 . . . . 1 . . . Extermination 14 | . . . . . . . . . . . 4 . . . . 10 . . . Reinforcement 8 | . 1 . . . . . 1 1 . . . . . . . 5 . . . Assault 2 | . . . . . . . . . . . . . . . . 2 . . . Garrison 1 | . . . . . . . . 1 . . . . . . . . . . . Intercept . | . . . . . . . . . . . . . . . . . . . . Searches Triggered . | . . . . . . . . . . . . . . . . . . . . Construction Impeded 1 | . . . . . . . . . . . . . . . . 1 . . . Haulers Reinforced . | . . . . . . . . . . . . . . . . . . . . Active Scanning Responses . | . . . . . . . . . . . . . . . . . . . . Cargo Convoy Interrupts 1 | . . . . . . . . . . . . . . . . 1 . . . Stealth | -11 -10 -10 -9 -9 -9 -8 -8 -8 -8 -8 -6 -6 -6 -6 -5 -5 -5 -5 -5 --------- Run | Yrd Mat Min Mat Min Exi Min Mat Sto Rec Scr Fac Low Low Dat Pro Fac Upp Upp War Distress Signals 12 | . 3 . 1 . . . 2 2 . . . . . . . 3 . . 1 Communications Jammed . | . . . . . . . . . . . . . . . . . . . . Distress Signals . | . . . . . . . . . . . . . . . . . . . . Times Spotted 202 | . 20 . 30 4 . . 28 23 3 . 10 2 5 . 6 49 2 3 17 Peak Tracking Total 15 | . 4 . 6 3 . . 4 9 1 . 4 2 5 . 4 5 2 2 15 Tactical Retreats 11 | . 1 . . . . . 1 1 . . . . 1 . . 7 . . . Traps | -11 -10 -10 -9 -9 -9 -8 -8 -8 -8 -8 -6 -6 -6 -6 -5 -5 -5 -5 -5 ------- Run | Yrd Mat Min Mat Min Exi Min Mat Sto Rec Scr Fac Low Low Dat Pro Fac Upp Upp War Traps Triggered 9 | . 1 . 3 1 . . 4 . . . . . . . . . . . . Indirectly . | . . . . . . . . . . . . . . . . . . . . Trap Hack Attempts . | . . . . . . . . . . . . . . . . . . . . Triggered . | . . . . . . . . . . . . . . . . . . . . Disarmed . | . . . . . . . . . . . . . . . . . . . . Reprogrammed . | . . . . . . . . . . . . . . . . . . . . Reused . | . . . . . . . . . . . . . . . . . . . . Traps Extracted . | . . . . . . . . . . . . . . . . . . . . Installed 1 | . . . . . . . . . . . . 1 . . . . . . . Triggered . | . . . . . . . . . . . . . . . . . . . . Machines | -11 -10 -10 -9 -9 -9 -8 -8 -8 -8 -8 -6 -6 -6 -6 -5 -5 -5 -5 -5 ---------- Run | Yrd Mat Min Mat Min Exi Min Mat Sto Rec Scr Fac Low Low Dat Pro Fac Upp Upp War Machines Disabled 21 | . . . 1 . . . 4 4 . . 2 . . . . 8 . 2 . Max in Single Turn 3 | . . . 1 . . . 2 1 . . 1 . . . . 3 . 1 . Garrison Access 2 | . . . . . . . . . . . 2 . . . . . . . . Machines Repaired . | . . . . . . . . . . . . . . . . . . . . Machines Dismantled . | . . . . . . . . . . . . . . . . . . . . Machines Sabotaged . | . . . . . . . . . . . . . . . . . . . . Overloaded Fab Kills . | . . . . . . . . . . . . . . . . . . . . Hacking | -11 -10 -10 -9 -9 -9 -8 -8 -8 -8 -8 -6 -6 -6 -6 -5 -5 -5 -5 -5 --------- Run | Yrd Mat Min Mat Min Exi Min Mat Sto Rec Scr Fac Low Low Dat Pro Fac Upp Upp War Machines Accessed 83 | . 5 . 8 1 2 . 8 9 6 1 11 1 2 4 . 22 . 1 2 Terminals 50 | . 5 . 6 . . . 7 8 6 . 6 . . . . 12 . . . Fabricators 2 | . . . . . . . . . . . . . . . . 2 . . . Repair Stations 5 | . . . 1 . . . . . . . 1 . . . . 3 . . . Recycling Units 4 | . . . . . . . . . . . . . . . . 4 . . . Scanalyzers 5 | . . . 1 . . . 1 . . . 2 . . . . 1 . . . Garrison Access 3 | . . . . . . . . 1 . . 2 . . . . . . . . Total Hacks 232 | . 9 . 21 1 24 . 21 19 11 8 35 1 4 27 . 48 . 1 2 Successful 169 | . 4 . 16 1 24 . 12 10 5 8 25 1 4 27 . 29 . 1 2 Failed 62 | . 5 . 5 . . . 9 9 6 . 10 . . . . 18 . . . Catastrophic 11 | . 3 . 1 . . . 1 1 . . . . . . . 5 . . . Database Lockouts 1 | . . . . . . . . . . . . . . . . 1 . . . Manual 95 | . 10 . 14 . 1 . 13 13 8 . 16 . . . . 19 . . 1 Terminals 117 | . 9 . 13 . . . 18 17 11 . 24 . . . . 25 . . . Fabricators 5 | . . . . . . . . . . . . . . . . 5 . . . Repair Stations 11 | . . . 2 . . . . . . . 2 . . . . 7 . . . Recycling Units 4 | . . . . . . . . . . . . . . . . 4 . . . Scanalyzers 22 | . . . 6 . . . 3 . . . 6 . . . . 7 . . . Garrison Access 5 | . . . . . . . . 2 . . 3 . . . . . . . . Terminal Hacks 90 | . . . . 1 24 . 3 4 2 8 8 1 4 27 . 5 . 1 2 Record 53 | . . . . . 23 . 1 2 . 8 1 . 3 11 . 2 . 1 1 Part Schematic 12 | . . . . . . . . . . . 1 . . 11 . . . . . Robot Schematic 2 | . . . . . . . . . . . . . . 2 . . . . . Robot Analysis 6 | . . . . . . . 1 . 1 . 4 . . . . . . . . Prototype ID Bank 5 | . . . . . . . . . 1 . 1 . . 3 . . . . . Open Door 6 | . . . . 1 . . . 2 . . . 1 1 . . . . . 1 Branch Access Points 1 | . . . . . . . . . . . . . . . . 1 . . . Terminal Index 2 | . . . . . . . 1 . . . 1 . . . . . . . . Unreport Threat 2 | . . . . . . . . . . . . . . . . 2 . . . Proto ID Catalog 1 | . . . . . 1 . . . . . . . . . . . . . . Fabricator Hacks 3 | . . . . . . . . . . . . . . . . 3 . . . Network Status 1 | . . . . . . . . . . . . . . . . 1 . . . Load Schematic 1 | . . . . . . . . . . . . . . . . 1 . . . Build 1 | . . . . . . . . . . . . . . . . 1 . . . Repair Station Hacks 9 | . . . 2 . . . . . . . 1 . . . . 6 . . . Scan Component 5 | . . . 1 . . . . . . . 1 . . . . 3 . . . Repair 4 | . . . 1 . . . . . . . . . . . . 3 . . . Recycling Unit Hacks 4 | . . . . . . . . . . . . . . . . 4 . . . Retrieve Components 4 | . . . . . . . . . . . . . . . . 4 . . . Scanalyzer 18 | . . . 5 . . . 2 . . . 5 . . . . 6 . . . Insert Component 6 | . . . 1 . . . 1 . . . 3 . . . . 1 . . . Analyze 5 | . . . 1 . . . 1 . . . 2 . . . . 1 . . . Retrieve Study 7 | . . . 3 . . . . . . . . . . . . 4 . . . Garrison Access Hacks 3 | . . . . . . . . 1 . . 2 . . . . . . . . Seal Access 2 | . . . . . . . . . . . 2 . . . . . . . . Coupler Status 1 | . . . . . . . . 1 . . . . . . . . . . . Unauthorized Hacks 42 | . 4 . 9 . . . 7 5 3 . 9 . . . . 5 . . . Terminals 42 | . 4 . 9 . . . 7 5 3 . 9 . . . . 5 . . . Assimilate 4 | . . . 1 . . . 2 . . . 1 . . . . . . . . Botnet 3 | . . . 1 . . . . . . . 2 . . . . . . . . Operators 4 | . 1 . 2 . . . . . . . 1 . . . . . . . . Skim 31 | . 3 . 5 . . . 5 5 3 . 5 . . . . 5 . . . Fabricators . | . . . . . . . . . . . . . . . . . . . . Repair Stations . | . . . . . . . . . . . . . . . . . . . . Recycling Units . | . . . . . . . . . . . . . . . . . . . . Scanalyzers . | . . . . . . . . . . . . . . . . . . . . Garrison Access . | . . . . . . . . . . . . . . . . . . . . Data Cores Recovered 2 | . . . 1 . . . 1 . . . . . . . . . . . . Used 1 | . . . . . . . 1 . . . . . . . . . . . . Hacking Detections 51 | . 3 . 5 . . . 6 5 3 . 10 . . . . 19 . . . Full Trace Events 3 | . 1 . . . . . . . . . 1 . . . . 1 . . . Feedback Events . | . . . . . . . . . . . . . . . . . . . . Feedback Blocked . | . . . . . . . . . . . . . . . . . . . . Robot Schematics Acquired 2 | . . . . . . . . . . . . . . 2 . . . . . Robots Built . | . . . . . . . . . . . . . . . . . . . . Authchips . | . . . . . . . . . . . . . . . . . . . . Time . | . . . . . . . . . . . . . . . . . . . . Total Robot Build Rating . | . . . . . . . . . . . . . . . . . . . . Part Schematics Acquired 16 | . . . 1 . . . 1 . . . 2 . . 11 . 1 . . . Parts Built 1 | . . . . . . . . . . . . . . . . 1 . . . Authchips 1 | . . . . . . . . . . . . . . . . 1 . . . Time 58 | . . . . . . . . . . . . . . . . 58 . . . Total Part Build Rating 3 | . . . . . . . . . . . . . . . . 3 . . . Part Studies Acquired 7 | . . . 3 . . . . . . . . . . . . 4 . . . Parts Repaired 4 | . . . 1 . . . . . . . . . . . . 3 . . . Time 95 | . . . 26 . . . . . . . . . . . . 69 . . . Parts Recycled . | . . . . . . . . . . . . . . . . . . . . Recycled Matter . | . . . . . . . . . . . . . . . . . . . . Retrieved Matter . | . . . . . . . . . . . . . . . . . . . . Retrieved Components 13 | . . . . . . . . . . . . . . . . 13 . . . Parts Scanalyzed 5 | . . . 1 . . . 1 . . . 2 . . . . 1 . . . Part Schematics Acquired 4 | . . . 1 . . . 1 . . . 1 . . . . 1 . . . Parts Damaged . | . . . . . . . . . . . . . . . . . . . . Bothacking | -11 -10 -10 -9 -9 -9 -8 -8 -8 -8 -8 -6 -6 -6 -6 -5 -5 -5 -5 -5 ------------ Run | Yrd Mat Min Mat Min Exi Min Mat Sto Rec Scr Fac Low Low Dat Pro Fac Upp Upp War Used RIF Installer . | . . . . . . . . . . . . . . . . . . . . Robots Hacked . | . . . . . . . . . . . . . . . . . . . . Non-combat . | . . . . . . . . . . . . . . . . . . . . Combat . | . . . . . . . . . . . . . . . . . . . . Robot Hacks Applied . | . . . . . . . . . . . . . . . . . . . . Relay Couplers Released . | . . . . . . . . . . . . . . . . . . . . Fabnet Peak Effective % . | . . . . . . . . . . . . . . . . . . . . Robots Rewired . | . . . . . . . . . . . . . . . . . . . . Allies Hacked . | . . . . . . . . . . . . . . . . . . . . Hacks Repelled . | . . . . . . . . . . . . . . . . . . . . Allies | -11 -10 -10 -9 -9 -9 -8 -8 -8 -8 -8 -6 -6 -6 -6 -5 -5 -5 -5 -5 -------- Run | Yrd Mat Min Mat Min Exi Min Mat Sto Rec Scr Fac Low Low Dat Pro Fac Upp Upp War Total Allies 13 | . . . . 1 . . 1 10 . . 1 . . . . . . . . Largest Group 10 | . . . . 1 . . 1 10 6 5 6 . . . . . . . . Highest-Rated Group 173 | . . . . 31 . . 10 173 109 93 103 . . . . . . . . Highest-Rated Ally 31 | . . . . 31 . . 10 29 29 29 29 . . . . . . . . Total Orders 2 | . . . . . . . . . . . 2 . . . . . . . . STAY 2 | . . . . . . . . . . . 2 . . . . . . . . Ally Attacks 53 | . . . . . . . . 16 37 . . . . . . . . . . Total Damage 693 | . . . . . . . . 219 474 . . . . . . . . . . Kills 10 | . . . . . . . . 4 6 . . . . . . . . . . Allies Corrupted . | . . . . . . . . . . . . . . . . . . . . Allies Melted 2 | . . . . . . . . . . . . . . . . . . . 2 Intel | -11 -10 -10 -9 -9 -9 -8 -8 -8 -8 -8 -6 -6 -6 -6 -5 -5 -5 -5 -5 ------- Run | Yrd Mat Min Mat Min Exi Min Mat Sto Rec Scr Fac Low Low Dat Pro Fac Upp Upp War Active Infowar (turns) 12573 | 131 1134 201 1514 426 392 31 74 2 . . . 1612 1006 188 1660 2250 386 611 955 Sensors 6482 | . . . . . 2 . 55 . . . . 1612 1006 188 1660 7 386 611 955 Terrain 2 | . . . . . . . . 2 . . . . . . . . . . . Traps 2243 | . . . . . . . . . . . . . . . . 2243 . . . Seismic 3846 | 131 1134 201 1514 426 390 31 19 . . . . . . . . . . . . Cloaking 1 | . . . . . . . . . . . . . . . . . . . 1 Robot Analysis Total 6 | . . . . . . . 1 . 1 . 4 . . . . . . . . Derelict Logs Recovered 5 | . . . . 1 . . . . . . . 1 1 . 1 . . 1 . Drone Launches . | . . . . . . . . . . . . . . . . . . . . Drone Recoveries . | . . . . . . . . . . . . . . . . . . . . Exploration | -11 -10 -10 -9 -9 -9 -8 -8 -8 -8 -8 -6 -6 -6 -6 -5 -5 -5 -5 -5 ------------- Run | Yrd Mat Min Mat Min Exi Min Mat Sto Rec Scr Fac Low Low Dat Pro Fac Upp Upp War Turns Passed 24833 | 191 1134 201 1542 426 392 31 3097 1908 1166 869 2589 1630 1025 188 1666 4764 447 611 956 Spaces Moved 13984 | 77 540 125 770 248 241 19 1264 959 738 566 1206 948 615 118 729 3114 342 541 824 Core 13 | 13 . . . . . . . . . . . . . . . . . . . Treads 9145 | 64 540 125 770 248 241 19 1264 959 738 566 1206 948 615 118 724 . . . . Legs 4826 | . . . . . . . . . . . . . . . 5 3114 342 541 824 Wheels . | . . . . . . . . . . . . . . . . . . . . Hover . | . . . . . . . . . . . . . . . . . . . . Flight . | . . . . . . . . . . . . . . . . . . . . Fastest Speed 50 | 50 160 160 160 160 160 160 160 153 153 153 153 160 160 160 120 105 105 107 105 Average Speed 143 | 159 160 160 160 160 160 162 162 157 153 153 157 160 160 160 160 116 106 107 107 Slowest Speed 260 | 250 160 160 200 160 160 200 240 163 153 153 160 160 160 160 260 120 107 108 108 Overloaded Moves . | . . . . . . . . . . . . . . . . . . . . Propulsion Burnouts . | . . . . . . . . . . . . . . . . . . . . Robots Hopped . | . . . . . . . . . . . . . . . . . . . . Potential Cave-ins . | . . . . . . . . . . . . . . . . . . . . Cave-ins Triggered . | . . . . . . . . . . . . . . . . . . . . Exploration Rate (%) 60 | 4 83 36 64 54 61 10 65 93 98 55 21 79 74 75 83 60 51 61 85 Regions Visited 19 Branch Regions 14 Pre-discovered Areas 12 | . . . 2 . 1 . 3 2 . . 1 . . 1 . 1 . 1 . Known Exits Taken 13 | . . . . . . 1 1 1 1 1 1 1 1 1 1 1 1 1 . Unknown Exits Taken 6 | 1 1 1 1 1 1 . . . . . . . . . . . . . . Scrap Searched 14 | . . . . 1 . . . . . 5 . 3 2 . 1 . 1 1 . Spaces Dug 118 | . 1 . 2 . . . 10 . . . 27 2 . . . 50 . 26 . Terrain Destroyed 488 | . 23 . 29 . . . 92 43 . . 36 2 8 . 11 94 . 76 74 Melee 72 | . . . . . . . 8 . . . 21 2 . . . 41 . . . Projectile 26 | . 1 . 6 . . . 9 . . . 8 . . . . 2 . . . AOE 390 | . 22 . 23 . . . 75 43 . . 7 . 8 . 11 51 . 76 74 Terrain Rammed . | . . . . . . . . . . . . . . . . . . . . Walls Destroyed . | . . . . . . . . . . . . . . . . . . . . Machines Disabled . | . . . . . . . . . . . . . . . . . . . . Actions | -11 -10 -10 -9 -9 -9 -8 -8 -8 -8 -8 -6 -6 -6 -6 -5 -5 -5 -5 -5 --------- Run | Yrd Mat Min Mat Min Exi Min Mat Sto Rec Scr Fac Low Low Dat Pro Fac Upp Upp War Total 17928 | 106 730 126 968 265 248 19 2187 1278 764 569 1798 1048 636 117 1205 4019 406 561 878 Wait 2907 | . 133 . 93 . . . 788 235 4 . 470 75 8 . 457 589 38 5 12 Move 13965 | 76 539 124 769 247 240 18 1263 958 737 565 1205 947 614 117 728 3113 341 540 824 Hop . | . . . . . . . . . . . . . . . . . . . . Pick Up 79 | 3 3 1 13 2 1 . 11 5 2 1 7 5 1 . . 21 1 1 1 Fast Attach 48 | 7 . . 4 . . . 11 . . . 2 1 . . 3 10 2 . 8 Attach 41 | . 2 . 3 . 3 . 3 1 1 1 7 . 1 . 1 10 5 3 . Detach 28 | . . . 1 2 . . 3 1 1 1 4 . . . . 3 4 2 6 Swap 227 | . 7 1 21 2 2 1 32 24 . 1 34 10 2 . 7 66 3 1 13 Drop 84 | . 1 . 10 3 2 . 14 9 1 . 7 3 . . . 28 1 1 4 Fire 362 | 20 39 . 51 5 . . 49 32 3 . 37 4 10 . 9 86 4 3 10 Melee 147 | . . . 1 . . . 8 8 . . 24 2 . . . 92 7 5 . Ram . | . . . . . . . . . . . . . . . . . . . . Kick 1 | . . . . . . . . . . . . . . . . 1 . . . Crush 33 | . 6 . 2 4 . . 5 5 10 . 1 . . . . . . . . Escape Stasis . | . . . . . . . . . . . . . . . . . . . . Rewire 5 | . . . . . . . . . 5 . . . . . . . . . . Trap 1 | . . . . . . . . . . . . 1 . . . . . . . Miscellaneous . | . . . . . . . . . . . . . . . . . . . . Route ------- -11/Scrapyard -10/Materials (discovered 4 exits: *Mat x2 / [*Min] / [*Sub]) -10/Mines -9/Materials (discovered 4 exits: *Mat x3 / *Min) -9/Mines (discovered 3 exits: *Mat / *Exi / [*Zio]) -9/Exiles -8/Mines -8/Materials (discovered 4 exits: *Fac x2 / *Sto x2) -8/Storage (discovered 2 exits: *Fac / *Rec) -8/Recycling (discovered 2 exits: *Fac / *Scr) -8/Scraptown -6/Factory (discovered 5 exits: *Fac x3 / *Low x2) -6/Lower Caves -6/Lower Caves (discovered 2 exits: *Fac / *Dat) -6/Data Miner -5/Proximity Caves -5/Factory (discovered 5 exits: Fac x3 / *Upp x2) -5/Upper Caves -5/Upper Caves (discovered 2 exits: *Fac / *War) -5/Warlord History --------- Turn | Location | Event 2 | -11/Scrapyard | Met Revision 17 18 | -11/Scrapyard | Discovered new exit (range 15) 192 | -11/Scrapyard | Entered Materials 307 | -10/Materials | Build established: Mutant 329 | -10/Materials | Discovered new exit (range 7) 579 | -10/Materials | Discovered new exit (range 13) 692 | -10/Materials | Derelicts attacked the area 936 | -10/Materials | Discovered new exit (range 14) 1173 | -10/Materials | Discovered new exit (range 12) 1326 | -10/Materials | Entered Mines 1388 | -10/Mines | Assembled infested the area 1394 | -10/Mines | Found a damaged Exp. Sensor Array with a note attached 1397 | -10/Mines | Found Prototype Device 1519 | -10/Mines | Discovered new exit (range 4) 1527 | -10/Mines | Entered Materials 1527 | -9/Materials | Evolved 2 slots: Utility x1, Weapon x1 2225 | -9/Materials | Discovered new exit (range 7) 2264 | -9/Materials | Build established: Gunner 2429 | -9/Materials | Repaired Seismic Detector 2494 | -9/Materials | Discovered new exit (range 16) 2735 | -9/Materials | Loaded intel: 23 trap records 2785 | -9/Materials | Destroyed 7 combat bots 2786 | -9/Materials | Learned Storage emergency access door positions 2862 | -9/Materials | Learned location of 1 exit from Recycling 2886 | -9/Materials | Learned Storage trap positions 2903 | -9/Materials | Identified exit to Materials 2916 | -9/Materials | Learned location of Zion (-7) 3069 | -9/Materials | Entered Mines 3074 | -9/Mines | Met a Derelict who couldn't figure out how to use a Trap Extractor 3077 | -9/Mines | Learned Materials non-interactive machine intel 3151 | -9/Mines | Discovered exit to Materials (range 12) 3219 | -9/Mines | A Derelict revealed a hidden shortcut to a safe place 3234 | -9/Mines | Received a Mining Laser from a helpful Derelict 3485 | -9/Mines | Deemed a non-threat by the Exiles lab entrance 3487 | -9/Mines | Discovered new exit (range 5) 3495 | -9/Mines | Entered Exiles 3495 | -9/Exiles | Accompanied by 1 ally 3535 | -9/Exiles | Met 8R-AWN 3561 | -9/Exiles | Met EX-HEX 3615 | -9/Exiles | Met EX-BIN 3636 | -9/Exiles | Aligned with FarCom system 3638 | -9/Exiles | Given EX-Vault access code 3679 | -9/Exiles | Opened EX-Vault 3687 | -9/Exiles | Identified Exp. Sensor Array 3694 | -9/Exiles | Found Longsword +1 3729 | -9/Exiles | Warned to stay clear of 0b10 Research branches 3784 | -9/Exiles | Met EX-DEC 3795 | -9/Exiles | Build established: Mutant 3862 | -9/Exiles | Discovered new exit (range 12) 3887 | -9/Exiles | Left Exiles lab with Longsword +1 3887 | -9/Exiles | Entered Mines 3907 | -8/Mines | Discovered exit to Materials (range 6) 3917 | -8/Mines | System corruption reached 10% 3918 | -8/Mines | Entered Materials 3918 | -8/Materials | Evolved 2 slots: Propulsion x1, Utility x1 3919 | -8/Materials | Loaded intel: 40 non-interactive machine locations 4195 | -8/Materials | Build established: Skirmisher 5737 | -8/Materials | Discovered new exit (range 13) 5753 | -8/Materials | Discovered new exit (range 9) 5761 | -8/Materials | Identified exit to Storage 5775 | -8/Materials | Identified exit to Factory 6258 | -8/Materials | Discovered exit to Storage (range 4) 6406 | -8/Materials | Discovered exit to Factory (range 9) 6714 | -8/Materials | Learned 4 Factory zone layouts 6765 | -8/Materials | Learned Factory garrison access intel 6808 | -8/Materials | Learned 2 Storage zone layouts 6840 | -8/Materials | Learned location of Recycling (-8) 6860 | -8/Materials | Learned 12 Factory zone layouts 6932 | -8/Materials | Learned location of Lower Caves (-7) 7015 | -8/Materials | Entered Storage 7016 | -8/Storage | Identified exit to Recycling 7018 | -8/Storage | Loaded intel: 15 trap records 7128 | -8/Storage | Learned location of Armory (-4) 7586 | -8/Storage | Destroyed 7 combat bots 7789 | -8/Storage | Garrison activated, responded to threat 7869 | -8/Storage | Discovered exit to Factory (range 15) 8082 | -8/Storage | Assisted by bots powering up and referring to "LRC-V3" 8123 | -8/Storage | Used back door to open Recycling access 8389 | -8/Storage | Build established: Commander-Skirmisher 8546 | -8/Storage | Learned 4 Recycling zone layouts 8625 | -8/Storage | Learned 2 Storage zone layouts 8648 | -8/Storage | Learned Storage emergency access door positions 8661 | -8/Storage | Learned location of 1 exit from Recycling 8682 | -8/Storage | Learned Factory trap positions 8923 | -8/Storage | Entered Recycling 8923 | -8/Recycling | Accompanied by 6 allies 8924 | -8/Recycling | Identified exit to Scraptown 8924 | -8/Recycling | Identified exit to Factory 9613 | -8/Recycling | Scanned before Scraplab entrance 10072 | -8/Recycling | Entered Scraplab 10089 | -8/Recycling | Entered Scraptown 10089 | -8/Scraptown | Accompanied by 5 allies 10091 | -8/Scraptown | System corruption cleaned by C-Scrubber 10283 | -8/Scraptown | Visited TADAMA 10332 | -8/Scraptown | Visited Symbiants 10424 | -8/Scraptown | Build established: Commander-Tank 10580 | -8/Scraptown | Heard Great Nut preacher, LISTEN AND RECITE! 10661 | -8/Scraptown | Visited Fellowship of the Rings 10686 | -8/Scraptown | Visited Cave Peace 10885 | -8/Scraptown | Discovered exit to Factory (range 11) 10958 | -8/Scraptown | Entered Factory 10958 | -6/Factory | Accompanied by 5 allies 10958 | -6/Factory | Evolved 4 slots: Propulsion x2, Utility x2 10959 | -6/Factory | Identified exit to Factory 10959 | -6/Factory | Identified exit to Lower Caves 10960 | -6/Factory | Loaded intel: 96 trap records 10961 | -6/Factory | Loaded intel: 4 garrison access locations 12453 | -6/Factory | Discovered exit to Lower Caves (range 6) 12508 | -6/Factory | Discovered exit to Factory (range 5) 12665 | -6/Factory | Build established: Commander-Skirmisher 13063 | -6/Factory | Learned location of Warlord (-5) 13105 | -6/Factory | Learned Factory trap positions 13137 | -6/Factory | Learned 2 Upper Caves zone layouts 13160 | -6/Factory | Learned 4 Extension zone layouts 13195 | -6/Factory | Learned location of 1 exit from Lower Caves 13547 | -6/Factory | Entered Lower Caves 13548 | -6/Lower Caves | Identified exit to Lower Caves 13852 | -6/Lower Caves | Build established: Hacker-Skirmisher 13954 | -6/Lower Caves | Found Alien Artifact 13954 | -6/Lower Caves | Identified Core Expander 13954 | -6/Lower Caves | Installed Core Expander, added new Power slot 15080 | -6/Lower Caves | Learned Factory stockpile data 15177 | -6/Lower Caves | Entered another Lower Caves area 15178 | -6/Lower Caves | Identified exit to Data Miner 15280 | -6/Lower Caves | Attracted the attention of an 0b10 checkpoint 15352 | -6/Lower Caves | Discovered exit to Factory (range 14) 15804 | -6/Lower Caves | Entered an active Warlord outpost 15832 | -6/Lower Caves | Learned 8 Factory zone layouts 15832 | -6/Lower Caves | Learned Armory security intel 16202 | -6/Lower Caves | Entered Data Miner 16202 | -6/Data Miner | Discovered new exit (range 6) 16212 | -6/Data Miner | Identified exit to Proximity Caves 16236 | -6/Data Miner | Met Data Miner 16286 | -6/Data Miner | Learned location of Section 7 (-2) 16286 | -6/Data Miner | Acquired the access code to Warlord's prototype stash 16326 | -6/Data Miner | Received God Mode back door access code from Data Miner 16390 | -6/Data Miner | Entered Proximity Caves 16392 | -5/Proximity Caves | Spotter reported a threat 16393 | -5/Proximity Caves | Spotter reported a threat 17104 | -5/Proximity Caves | Learned 4 Factory zone layouts 17892 | -5/Proximity Caves | Discovered exit to Factory (range 8) 18035 | -5/Proximity Caves | System corruption reached 10% 18054 | -5/Proximity Caves | System corruption reached 30% 18056 | -5/Proximity Caves | Entered Factory 18056 | -5/Factory | Evolved 2 slots: Propulsion x1, Utility x1 18057 | -5/Factory | Identified exit to Upper Caves 18058 | -5/Factory | Loaded intel: 102 trap records 18141 | -5/Factory | Fabricated Hvy. EM Shotgun? 18200 | -5/Factory | Repaired Hvy. EM Shotgun 18516 | -5/Factory | Build established: Scavenger-Skirmisher 18863 | -5/Factory | Repaired Hrd. Medium Armor Plating 19197 | -5/Factory | Build established: Scavenger-Mutant 20177 | -5/Factory | Build established: Hacker-Mutant 20196 | -5/Factory | Watched by a mysterious "MATRIX" hacker. 20749 | -5/Factory | Cargo convoy interrupted 20755 | -5/Factory | Learned location of Extension (-4) 20800 | -5/Factory | Identified exit to Factory 20860 | -5/Factory | Learned location of 1 exit from Quarantine 20896 | -5/Factory | Learned 4 Factory zone layouts 20942 | -5/Factory | Learned Quarantine emergency access door positions 21377 | -5/Factory | Repaired Enh. Autogun 21458 | -5/Factory | System corruption reached 10% 21767 | -5/Factory | Central database locked down 22556 | -5/Factory | First assault squad dispatched 22599 | -5/Factory | Found Prototype Launcher 22820 | -5/Factory | Entered Upper Caves 22898 | -5/Upper Caves | Identified Smartbomb Launcher 23231 | -5/Upper Caves | Discovered new exit (range 5) 23237 | -5/Upper Caves | Identified exit to Upper Caves 23267 | -5/Upper Caves | Entered another Upper Caves area 23414 | -5/Upper Caves | Discovered exit to Factory (range 9) 23858 | -5/Upper Caves | Discovered new exit (range 3) 23861 | -5/Upper Caves | Identified exit to Warlord 23872 | -5/Upper Caves | Attacked by a delusional Derelict stockpiling parts 23878 | -5/Upper Caves | Entered Warlord 23917 | -5/Warlord | System corruption cleaned by Quarantine Array 24369 | -5/Warlord | Met Warlord 24394 | -5/Warlord | Warlord's base attacked by MAIN.C 24552 | -5/Warlord | Found Prototype Energy Cannon 24552 | -5/Warlord | Identified Vortex Driver 24554 | -5/Warlord | Found Vortex Driver 24603 | -5/Warlord | Opened Warlord's prototype stash 24618 | -5/Warlord | Found Prototype Device 24618 | -5/Warlord | Identified Exp. Cloaking Device 24629 | -5/Warlord | Found Prototype Processor 24629 | -5/Warlord | Identified Exp. Target Analyzer 24631 | -5/Warlord | Found Prototype Device 24631 | -5/Warlord | Identified System Purifier 24637 | -5/Warlord | Found Prototype Hackware 24637 | -5/Warlord | Identified System Mapper 24643 | -5/Warlord | Found Prototype Reactor 24643 | -5/Warlord | Identified Vortex Chain Reactor 24736 | -5/Warlord | Spotted Striker 24744 | -5/Warlord | Warlord forces counterattacked 24778 | -5/Warlord | Spotted B-75 Beast 24778 | -5/Warlord | Spotted B-86 Titan 24817 | -5/Warlord | Lost 11 allies 24827 | -5/Warlord | P-70 Sage assimilated allied LG-9ZB(g) 24833 | -5/Warlord | Attacked by Warlord forces 24834 | -5/Warlord | Self-destructed Last Messages --------------- 24820_ P-70 Sage hacks S2-2JL(l), rebooting. 24821_ P-70 Sage destroyed. 24822_ Slug penetrates P-80 Master. 24823_ VA-3RV(g) system terminally corrupted. 24827_ P-70 Sage hacks LG-9ZB(g), assimilated. 24827_ WJ-X7B(b) sneak attacks. 24827_ LG-9ZB(g) suffers critical hit (Smash). 24827_ LG-9ZB(g) system corrupted by crushing effect. 24827_ LG-9ZB(g) knocked back. 24827_ LG-9ZB(g) suffers critical hit (Burn). 24828_ LG-9ZB(g) system terminally corrupted. 24828_ QM-25V(g) knocked back. 24828_ Slug penetrates A0-CBY(g). 24828_ A0-CBY(g) destroyed. 24828_ S2-2JL(l) reactivates. 24829_ The unstable cave ceiling collapses. 24833_ ANNOUNCEMENT: Internal threat detected, destroy unregistered bots on sight. 24833_ Exp. Sensor Array destroyed. 24834_ Critical hit (Burn: +37). Map ----- +----------------------------------------------------+ | ########### # #??????????????????????????? | | #?????# # #??????????????????????????? | | #?????# + #??????????????????????????? | | ] #?????# #### #??????????????????????????? | | #?????# ??# #??????????????????????????? | | #?????# ##?# #??????????????????????????? | | ! #?????# #??# #??????????????????????????? | | #?????# #??######??????????????????????????? | | #?????# #?????????????????????????????##???? | | #####?????# #???????????????????????????### ???? | | ########??# #???????????????????????? ?? ???? | | #??# #????????????????????????? ### ???? | | #??# #????????????????????????? ???? | | #?## #???????"??????????????????# #??? | | ! * +? #?????#""????######????????# ??? | | #??# #?????#""#?### ###???????# ##? | | = #??# #?????#""#?# ###??????# #? | | [ #### #######""### ## # ####????# ## | | # ; "" ![## # #?????# # | | # % % # ""= % = #??????# | | #####+## = ; ""*! #####?## | | = % /^!!%%*%[ =!* # ### | | = =%g %=/^%%!=%[%g g !=%& =!& % ## | | ]%=[gg=* / =^g*=g= * == ! %%! ! ### | | =!= * ! [/^ !!%/[! g% * %* # ##?? | | #####+"# ==!! !%! ! "" =@ ## #??? | | # % ==! ""% " #??# #?## | | # # "" ## ###??# #### | | #### #######""### ## # #?###????# #?# | | #??# #?????#""#?#########???????? ### | | #??# ##????#""#????????????????? ### | | #??# #????#""#????????????????? ##?# | | #??# ##?????""????????????????? ???## | | #??# #????????????????????????# ????## | | ########### #????????????????????????# #?????# | | ?????# #????????????????????????# ??????## | | ?????# #????????????????????????? ??????## | | ?????# #????????????????????????? ??????## | | ?????# ### ##????????????????????????????????# | | ?????# #?# #?????????????????????????????????# | | ?????# #?# #?????????????????????????????????# | | ?????# ###+#######???????????????????????????# | | ?????# # #???????????????????????????## | | ?????# # #???????????????????????????? | | ?????# # #???????????????????????????? | | ?????# # """" #???????????????????????????### | | ?????# + """" #?????????????????????????????? | | ?????# # """" #?????????????????????????????? | | ?????# # """" #?????????????????????????????? | | ?????# # #?????????????????????????????? | +----------------------------------------------------+ Best States ------------- Heat Dissipation 71 Energy Generation 55 Energy Capacity 700 Matter Stores 300 Matter Capacity 300 Sight Range 16 Robot Scan Range 20 Terrain Scan Density 10 Corruption Containment 8 Armor Coverage 225 Power Shielding 33 Evasion (%) 80 Targeting Accuracy 5 Target Analysis 10 Recoil Reduction 5 Offensive Hacking 42 Defensive Hacking 10 Authchip Count 2 Item Schematics ----------------- Imp. EM Shotgun | -9/Materials | Scanalyzed Hvy. EM Shotgun | -8/Materials | Scanalyzed Cloaking Device | -6/Factory | Hacked Cld. Plasma Cannon | -6/Factory | Scanalyzed Combat Drone Bay | -6/Data Miner | Free Lgt. Regenerative Plating | -6/Data Miner | Free Enh. Flexi-carbon Leg | -6/Data Miner | Free Imp. Matter Compressor | -6/Data Miner | Free Tesla Bomb Launcher | -6/Data Miner | Free Myomer Leg | -6/Data Miner | Free Imp. System Guard | -6/Data Miner | Free Hvy. Gauss Cannon | -6/Data Miner | Free Adv. Field Recycling Unit | -6/Data Miner | Free Imp. Thunder Leg | -6/Data Miner | Free Adv. Point Defense System | -6/Data Miner | Free Lrn. Missile Launcher | -5/Factory | Scanalyzed Robot Schematics ------------------ S-27 Virus | -6/Data Miner | Free H-66 Slayer | -6/Data Miner | Free Fabricated ------------ Hvy. EM Shotgun | x1 | -5/Factory | Authchip Repaired ---------- Seismic Detector | 15% | -9/Materials Hvy. EM Shotgun | 23% | -5/Factory Hrd. Medium Armor Plating | 21% | -5/Factory Enh. Autogun | 11% | -5/Factory Studied --------- Lgt. Treads | -9/Materials | Hacked Hvy. Assault Rifle | -9/Materials | Hacked Grenade Launcher | -9/Materials | Hacked Thunder Leg | -5/Factory | Hacked Lrn. Missile Launcher | -5/Factory | Hacked Hvy. Rocket Launcher | -5/Factory | Hacked Imp. Concussive RPG | -5/Factory | Hacked Alien Tech Used ----------------- Core Expander Achievements -------------- Deadly Force Dodgeball, But With Guns Dynamic Key My Business Is Booming Ooh, Shiny! Reappropriation Challenges ------------ None Game ------ Seed BlinkReinforcedFirepult Manual? 0 Play Time 04:03:56 Cumulative 51.8 hours Start 2026.04.23 @ 00:51:05 End 2026.04.23 @ 06:35:37 Sessions 1 Manual Loads 0 Difficulty Rogue Special Mode None Game No. 32 Rogue 32 Adventurer 0 Explorer 0 Win Type - Total 0 Types 0/0/0/0/0/0/0/0/0/0 Lore% 44 Gallery% 30 Achievement% 29 Wizard Run 0 Options --------- Layout 0 ASCII 0 Keyboard 1 Movement Arrows Keybinds 0 Fullscreen 2 Font 18/SmallcapsGlow Map View 76x50 Zoom Use 0% Tactical HUD 1 Map Filters NONE Filters NONE Steam 1 RUN: 3989d9e0-f8bc-4028-a033-56e40f8f8281